bitfinex-derivatives/quotes_ETHF0:USTF0_20251119
["timestamp","ask_amount","ask_price","bid_price","bid_amount"]
[1763533050186,0.53506,3030.2,3030.0,4.38968272]
[1763533051088,0.6133,3030.5,3030.3,0.53504]
[1763533051402,0.6133,3030.5,3030.4,4.38968272]
[1763533051989,1.1483,3030.5,3030.4,3.2078]
[1763533052290,1.1483,3030.5,3030.4,4.38968272]
[1763533052492,2.1351,3030.5,3030.4,3.2078]
[1763533052691,0.53504,3030.3,3030.2,1.18188272]
[1763533053989,1.52184,3030.3,3030.2,1.18188272]
[1763533055198,0.53504,3030.3,3030.2,1.18188272]
[1763533055993,0.53504,3030.3,3030.2,1.77267004]
[1763533056990,0.53504,3030.3,3030.1,1.77267004]
[1763533057398,0.53504,3030.3,3030.2,1.77267004]
[1763533057895,0.53506,3030.2,3030.1,1.77267004]
[1763533058290,0.53506,3030.2,3030.0,3.2078]
[1763533058291,0.53507,3030.1,3030.0,3.2078]
[1763533060199,1.11029,3030.0,3029.9,0.53511]
[1763533060393,1.11029,3030.0,3029.9,3.2078]
[1763533062514,0.53511,3029.9,3029.8,2.35638238]
[1763533062801,0.53508,3030.1,3030.0,0.53509]
[1763533063106,0.53502,3030.4,3030.2,0.53505]
[1763533063306,0.53502,3030.4,3030.3,4.98040259]
[1763533063613,1.52182,3030.4,3030.3,4.98040259]
[1763533063906,1.52182,3030.4,3030.3,3.2078]
[1763533065500,0.53502,3030.4,3030.3,3.2078]
[1763533065699,0.6133,3030.5,3030.4,0.53502]
[1763533065902,0.6133,3030.5,3030.4,1.77260259]
[1763533066104,0.53502,3030.4,3030.3,3.2078]
[1763533066802,0.53502,3030.4,3030.3,4.98041991]
[1763533067305,0.53502,3030.4,3030.3,3.2078]
[1763533067693,1.52182,3030.4,3030.3,3.2078]
[1763533070203,1.52186,3030.2,3030.1,1.1812482]
[1763533070899,0.9868,3030.1,3030.0,1.1812482]
[1763533071303,2.09709,3030.0,3029.9,1.1812482]
[1763533072007,2.09709,3030.0,3029.7,3.2078]
[1763533072008,1.52193,3029.8,3029.7,3.2078]
[1763533073300,0.9868,3029.8,3029.4,1.77638855]
[1763533073499,0.53518,3029.5,3029.4,0.93284073]
[1763533073901,1.52198,3029.5,3029.4,0.93284073]
[1763533074105,2.09718,3029.5,3029.4,0.93284073]
[1763533074509,0.53518,3029.5,3029.4,0.93284073]
[1763533075805,2.09718,3029.5,3029.4,0.93284073]
[1763533076118,0.53518,3029.5,3029.4,0.93284073]
[1763533076997,0.53516,3029.7,3029.6,0.9293]
[1763533077518,2.32675124,3029.9,3029.8,1.50543]
[1763533077807,1.5126,3030.5,3030.4,0.9703]
[1763533078006,0.53509,3030.1,3030.0,0.9703]
[1763533079111,1.43439,3030.1,3030.0,0.9703]
[1763533079512,0.53511,3029.9,3029.8,5.95094782]
[1763533080609,3.21275017,3030.8,3030.4,0.9703]
[1763533080906,3.74770017,3030.8,3030.7,0.9703]
[1763533081111,0.00495017,3030.8,3030.7,0.9703]
[1763533081813,0.5806,3032.5,3032.0,0.5221]
[1763533082017,0.53472,3032.2,3032.0,3.7299]
[1763533082211,0.5806,3032.5,3031.6,4.97461979]
[1763533082212,0.5806,3032.0,3031.6,4.97461979]
[1763533082409,0.5806,3032.0,3031.7,3.2078]
[1763533082708,0.8993,3031.8,3031.7,3.21035382]
[1763533082898,0.53476,3031.9,3031.8,0.5221]
[1763533083299,0.00358495,3032.0,3031.9,0.5221]
[1763533083505,0.00495017,3032.2,3032.1,0.5221]
[1763533083705,0.00495017,3032.2,3032.1,3.7299]
[1763533084512,0.009226,3032.2,3032.1,3.7299]
[1763533085211,0.009226,3032.2,3032.1,3.2078]
[1763533085212,0.908526,3032.2,3032.1,3.2078]
[1763533085414,1.43407,3031.8,3031.7,0.00255382]
[1763533085615,4.64187,3031.8,3031.7,0.00255382]
[1763533085817,1.43416,3031.3,3031.2,3.2078]
[1763533086915,1.43416,3031.3,3031.2,3.21147068]
[1763533087105,0.53486,3031.3,3031.2,3.21147068]
[1763533087415,0.53486,3031.3,3031.2,3.72997068]
[1763533087607,0.53484,3031.5,3031.4,0.5185]
[1763533088818,3.2078,3031.8,3031.4,0.5185]
[1763533089009,0.53485,3031.4,3031.3,0.5185]
[1763533089911,3.2078,3031.8,3031.3,0.5185]
[1763533090119,0.53483,3031.5,3031.3,0.5185]
[1763533090714,1.11543,3031.5,3031.3,0.5185]
[1763533091814,1.11534,3032.0,3031.9,0.5185]
[1763533092215,0.53485,3031.4,3031.3,0.5185]
[1763533095511,1.43415,3031.4,3031.2,3.21147068]
[1763533095712,0.8993,3031.3,3031.2,3.21147068]
[1763533096132,0.8993,3030.8,3030.7,3.2078]
[1763533096423,1.43425,3030.8,3030.7,3.2078]
[1763533097225,1.43425,3030.8,3030.7,3.21102025]
[1763533098623,1.43425,3030.8,3030.7,0.00322025]
[1763533099527,0.53495,3030.8,3030.7,0.52542025]
[1763533101722,0.53495,3030.8,3030.7,0.00322025]
[1763533101928,1.43425,3030.8,3030.7,0.00322025]
[1763533102421,1.43425,3030.8,3030.7,0.71612025]
[1763533102422,0.53495,3030.8,3030.7,0.71612025]
[1763533102822,0.5806,3031.5,3030.9,0.7129]
[1763533103230,0.5806,3031.5,3031.0,0.7129]
[1763533103521,0.5349,3031.1,3031.0,0.7129]
[1763533103724,0.53495,3030.8,3030.7,3.92392025]
[1763533104924,0.53495,3030.8,3030.7,3.21102025]
[1763533104925,1.49485,3030.8,3030.7,3.21102025]
[1763533106331,0.53495,3030.8,3030.7,3.92392025]
[1763533107424,1.49485,3030.8,3030.7,3.21102025]
[1763533107624,1.49485,3030.8,3030.7,0.00322025]
[1763533107822,0.5806,3032.0,3030.7,6.00322025]
[1763533108122,0.53479,3031.8,3031.6,3.2078]
[1763533108626,0.53479,3031.8,3031.6,4.0909813]
[1763533109330,1.0289,3031.7,3031.6,4.0909813]
[1763533109826,1.0289,3031.7,3031.6,3.2078]
[1763533111126,0.5806,3032.0,3031.7,0.53478]
[1763533111323,3.7884,3032.5,3031.9,0.8831813]
[1763533111527,0.5806,3032.5,3032.0,3.2078]
[1763533111719,0.543936,3032.2,3032.0,4.0909813]
[1763533112327,0.543936,3032.2,3032.1,0.8831813]
[1763533112528,0.543936,3032.2,3032.0,4.0909813]
[1763533113330,1.0289,3032.1,3032.0,4.0909813]
[1763533113527,1.0289,3032.1,3032.0,3.2078]
[1763533115044,0.543936,3032.2,3032.0,3.2078]
[1763533116445,0.543936,3032.2,3032.0,4.0909813]
[1763533117439,0.53472,3032.1,3032.0,3.2078]
[1763533117732,0.009226,3032.2,3032.0,3.2078]
[1763533118041,0.543936,3032.2,3032.1,0.88181879]
[1763533118930,0.5806,3032.5,3032.0,4.08961879]
[1763533119134,0.5806,3032.5,3032.4,3.2078]
[1763533119628,1.11525,3032.5,3032.4,3.2078]
[1763533120025,2.14780058,3032.5,3032.4,3.2078]
[1763533120936,1.5636,3032.2,3032.1,0.00495017]
[1763533121740,1.56369,3031.7,3031.6,3.2078]
[1763533123045,0.53479,3031.7,3031.6,3.2078]
[1763533123742,1.56369,3031.7,3031.6,3.2078]
[1763533126740,0.53479,3031.7,3031.6,3.2078]
[1763533126945,1.56369,3031.7,3031.6,3.2078]
[1763533127843,1.0289,3031.7,3031.1,0.88181879]
[1763533128040,1.0289,3031.1,3031.0,3.2078]
[1763533128443,1.15212,3031.0,3030.8,0.88181879]
[1763533128644,0.53495,3030.8,3030.7,0.88503904]
[1763533129240,0.6172,3031.0,3030.7,0.88503904]
[1763533129643,0.53494,3030.9,3030.7,0.88503904]
[1763533129948,3.2078,3031.6,3030.8,6.0]
[1763533130157,0.53474,3032.0,3031.7,0.53478]
[1763533130343,0.6172,3032.0,3031.9,4.38247839]
[1763533130546,0.6172,3032.0,3031.9,3.2078]
[1763533131052,1.6461,3032.0,3031.9,3.2078]
[1763533131248,0.6172,3032.0,3031.9,3.2078]
[1763533132439,0.53473,3032.1,3031.9,3.2078]
[1763533132644,0.53473,3032.1,3031.9,4.08928683]
[1763533132848,0.53473,3032.1,3032.0,0.88148683]
[1763533134657,0.53965017,3032.3,3032.0,0.88148683]
[1763533134859,2.18084,3032.0,3031.9,3.39890683]
[1763533135154,2.18084,3032.0,3031.9,2.51742]
[1763533140064,1.56369,3031.7,3031.6,0.00495017]
[1763533140453,2.33043,3031.5,3031.3,0.88148683]
[1763533140760,0.6913,3031.0,3030.9,4.08928683]
[1763533141062,1.7956,3031.0,3030.9,4.08928683]
[1763533141559,1.7956,3031.0,3030.9,3.2078]
[1763533142356,1.1043,3030.8,3030.7,0.00322025]
[1763533143460,2.3306,3030.5,3030.4,3.18836302]
[1763533143860,2.3306,3030.5,3029.9,1.17467839]
[1763533143861,1.7956,3030.0,3029.9,0.88148683]
[1763533144056,1.63941,3029.9,3029.7,4.08928683]
[1763533144359,0.53814229,3029.9,3029.7,3.2078]
[1763533144555,0.53814229,3029.9,3029.7,3.21114082]
[1763533145654,0.53507,3030.2,3029.8,0.88148683]
[1763533145855,0.53503,3030.4,3030.1,4.08928683]
[1763533146067,0.53503,3030.4,3030.1,4.62435683]
[1763533146259,0.6913,3030.5,3030.1,4.08928683]
[1763533146460,0.53502,3030.4,3030.1,4.08928683]
[1763533146655,0.537438,3030.4,3030.1,4.08928683]
[1763533146965,0.53504,3030.3,3030.1,4.08928683]
[1763533147164,0.53504,3030.3,3030.1,4.62435683]
[1763533147361,0.53504,3030.3,3030.1,4.08928683]
[1763533147560,0.53498,3030.7,3030.4,0.53501]
[1763533147761,0.53498,3030.7,3030.6,3.2078]
[1763533148465,0.53494,3030.9,3030.7,0.53496]
[1763533148656,0.5374803,3030.9,3030.8,0.87899867]
[1763533149264,0.0025403,3030.9,3030.8,0.87899867]
[1763533150770,0.53495,3030.8,3030.6,4.08679867]
[1763533151070,0.53495,3030.8,3030.7,0.87899867]
[1763533151674,0.5374803,3030.9,3030.7,0.87899867]
[1763533151866,0.5374803,3030.9,3030.8,0.87958198]
[1763533152173,0.5374803,3030.9,3030.7,0.87958198]
[1763533152878,0.5374803,3030.9,3030.8,0.87958198]
[1763533153069,0.5374803,3030.9,3030.8,1.17199823]
[1763533153466,0.5374803,3030.9,3030.7,1.70695823]
[1763533153773,0.5374803,3030.9,3030.7,1.17199823]
[1763533154269,0.5374803,3030.9,3030.7,1.70695823]
[1763533154773,0.0025403,3030.9,3030.7,1.70694823]
[1763533155869,0.5374903,3030.9,3030.7,1.70694823]
[1763533156770,0.53984017,3031.2,3030.8,1.17199823]
[1763533156959,0.00495017,3031.2,3031.1,3.2078]
[1763533157872,0.54313043,3031.2,3031.1,3.2078]
[1763533159978,1.64743043,3031.2,3031.1,3.2078]
[1763533161271,0.54313043,3031.2,3031.1,3.2078]
[1763533161974,0.00825043,3031.2,3031.1,3.2078]
[1763533162176,0.00825043,3031.2,3031.1,4.08729135]
[1763533163469,0.54313043,3031.2,3031.1,4.08729135]
[1763533164376,0.54313043,3031.2,3031.1,3.2078]
[1763533164775,0.54313043,3031.2,3031.1,4.08818324]
[1763533164976,1.57903043,3031.2,3031.1,4.08818324]
[1763533166471,0.54313043,3031.2,3031.1,3.2078]
[1763533166970,4.90713043,3031.2,3031.1,4.08818324]
[1763533167170,4.90713043,3031.2,3031.1,3.2078]
[1763533167673,4.37225043,3031.2,3031.1,3.7427]
[1763533167977,4.90713043,3031.2,3031.1,3.2078]
[1763533168271,0.54313043,3031.2,3031.1,4.37979823]
[1763533169479,1.57903043,3031.2,3031.1,4.37979823]
[1763533169677,0.54313043,3031.2,3031.1,4.37979823]
[1763533170276,1.59093043,3031.2,3031.1,4.37979823]
[1763533170671,0.54313043,3031.2,3031.1,3.2078]
[1763533170875,9.72593043,3031.2,3031.1,3.2078]
[1763533171073,9.72593043,3031.2,3031.1,4.08934517]
[1763533171268,9.72593043,3031.2,3031.1,3.2078]
[1763533171472,8.67813043,3031.2,3031.1,3.2078]
[1763533172182,9.72593043,3031.2,3031.1,3.2078]
[1763533173976,9.72593043,3031.2,3031.1,2.4937]
[1763533174175,15.86948813,3031.2,3031.0,0.88219089]
[1763533174377,1.58282,3030.4,3030.3,4.3847484]
[1763533174580,1.58282,3030.4,3030.3,3.21275017]
[1763533175574,1.58282,3030.4,3030.3,0.00495017]
[1763533175778,1.6527,3030.0,3029.9,4.37979823]
[1763533175978,9.7867,3030.0,3029.9,4.37979823]
[1763533176380,0.6049,3030.0,3029.8,1.17199823]
[1763533176681,1.0478,3029.9,3029.8,1.17199823]
[1763533176882,1.58291,3029.9,3029.8,1.17199823]
[1763533177184,1.0478,3029.8,3029.7,1.17533905]
[1763533177577,1.0478,3029.8,3029.7,0.00334082]
[1763533178984,9.1828,3029.8,3029.7,0.00334082]
[1763533179878,1.0478,3029.6,3029.5,3.2078]
[1763533181090,9.1828,3029.6,3029.5,3.2111673]
[1763533186393,9.1838,3029.6,3029.5,3.2111673]
[1763533188591,1.0478,3029.6,3029.5,3.2111673]
[1763533188795,9.1838,3029.6,3029.5,3.2111673]
[1763533190598,9.71896,3029.6,3029.5,3.2111673]
[1763533190795,9.71896,3029.6,3029.5,0.0033673]
[1763533191788,0.53523,3029.2,3029.1,3.2078]
[1763533191996,0.53538,3028.4,3028.3,3.2078]
[1763533192192,0.6049,3029.0,3028.3,3.2078]
[1763533192193,3.7728,3028.6,3028.3,3.2078]
[1763533192387,0.6049,3028.5,3028.3,3.2078]
[1763533192793,0.60877757,3028.5,3028.3,3.2078]
[1763533192999,0.60877757,3028.5,3028.3,3.74558413]
[1763533193391,1.14413757,3028.5,3028.3,3.74558413]
[1763533193898,1.14413757,3028.5,3028.3,3.21019413]
[1763533195604,1.0478,3028.4,3028.3,3.21019413]
[1763533195790,1.14413757,3028.5,3028.3,3.21019413]
[1763533196612,1.0478,3028.4,3028.3,3.21019413]
[1763533198119,1.14413757,3028.5,3028.3,3.21019413]
[1763533198709,0.9405,3028.4,3028.3,3.21019413]
[1763533198911,1.14413757,3028.5,3028.3,3.21019413]
[1763533199920,1.14413757,3028.5,3027.3,1.17199823]
[1763533199921,1.12683,3027.5,3027.3,1.17199823]
[1763533200109,1.12683,3027.5,3027.2,3.2078]
[1763533200110,0.53556,3027.4,3027.2,3.2078]
[1763533200807,1.12675,3028.0,3027.2,3.21076974]
[1763533201008,0.53547,3027.9,3027.7,3.2078]
[1763533201211,0.53529,3028.9,3027.8,1.7262377]
[1763533201411,3.8127,3029.0,3028.0,3.2078]
[1763533201710,0.00387757,3028.5,3028.3,0.53538]
[1763533201910,0.00387757,3028.5,3028.4,3.2078]
[1763533202110,0.59517757,3028.5,3028.4,3.2078]
[1763533203112,0.53537,3028.4,3028.3,1.17199823]
[1763533203313,0.53537,3028.4,3028.2,1.17199823]
[1763533203520,0.53541,3028.2,3028.1,1.1769484]
[1763533204125,4.68371,3028.2,3028.1,0.00495017]
[1763533206225,0.53555,3027.4,3027.3,1.17199823]
[1763533206525,0.53555,3027.4,3027.2,1.17496797]
[1763533207321,0.53555,3027.4,3027.2,0.00296974]
[1763533209719,1.12685,3027.5,3027.3,0.53557]
[1763533210026,3.74332,3027.6,3027.4,0.53555]
[1763533210216,3.2078,3027.6,3027.2,4.91833797]
[1763533210421,0.53556,3027.4,3027.2,3.21076974]
[1763533212120,0.53556,3027.4,3027.2,0.00296974]
[1763533212527,0.9405,3027.3,3027.2,0.00296974]
[1763533218231,0.9405,3027.3,3026.4,2.29773759]
[1763533218232,2.06751,3026.5,3026.4,3.2078]
[1763533219226,0.53576,3026.2,3026.0,3.2078]
[1763533219528,0.53874887,3026.2,3026.0,3.21204423]
[1763533220625,0.9405,3026.1,3026.0,3.21204423]
[1763533221727,0.00298887,3026.2,3026.0,3.74784423]
[1763533221927,0.53875887,3026.2,3026.0,3.74784423]
[1763533222633,0.53875887,3026.2,3026.0,3.21204423]
[1763533222833,0.53875887,3026.2,3026.0,3.74784423]
[1763533223033,0.00298887,3026.2,3026.0,3.74784423]
[1763533223637,0.53875887,3026.2,3026.0,3.21204423]
[1763533224831,0.9405,3026.1,3026.0,0.00424423]
[1763533225024,0.9573,3026.1,3026.0,0.00424423]
[1763533229440,0.53875887,3026.2,3026.0,0.00424423]
[1763533229939,0.8639,3026.1,3026.0,0.00424423]
[1763533232832,0.53575,3026.3,3026.0,4.91983246]
[1763533233034,0.5913,3026.5,3026.1,1.17199823]
[1763533233234,1.12701,3026.5,3026.4,3.2078]
[1763533233735,0.5913,3026.5,3026.4,3.2078]
[1763533233931,0.59413456,3026.5,3026.4,3.2078]
[1763533236339,0.59413456,3026.5,3026.4,4.37979823]
[1763533236540,0.59413456,3026.5,3026.4,3.2078]
[1763533236840,0.59413456,3026.5,3026.4,4.08750363]
[1763533237349,0.59413456,3026.5,3026.4,3.2078]
[1763533238546,0.59413456,3026.5,3026.4,4.37979823]
[1763533238744,0.59413456,3026.5,3026.4,3.2078]
[1763533239232,0.59413456,3026.5,3026.4,4.37979823]
[1763533240349,1.12984456,3026.5,3026.4,4.37979823]
[1763533240539,1.12984456,3026.5,3026.4,4.91552823]
[1763533240943,1.12984456,3026.5,3026.4,4.37979823]
[1763533241746,1.99374456,3026.5,3026.4,1.17199823]
[1763533241946,0.8639,3026.3,3026.2,0.88122038]
[1763533242249,1.39965,3026.3,3026.2,0.88122038]
[1763533242743,0.53576,3026.2,3026.1,1.17199823]
[1763533242945,0.53578,3026.1,3026.0,5.50986182]
[1763533243337,0.59413456,3026.5,3026.0,5.50986182]
[1763533243545,0.53573,3026.4,3026.3,1.71070473]
[1763533243746,0.53573,3026.4,3026.3,2.29775759]
[1763533244048,0.59413456,3026.5,3026.4,0.53573]
[1763533244244,1.12984456,3026.5,3026.4,2.29774759]
[1763533244647,0.59413456,3026.5,3026.4,3.74353]
[1763533248553,1.99374456,3026.5,3026.4,3.2078]
[1763533248948,1.12984456,3026.5,3026.4,3.2078]
[1763533250456,1.99374456,3026.5,3026.4,3.2078]
[1763533251954,1.45803456,3026.5,3026.4,3.2078]
[1763533252155,1.45803456,3026.5,3026.4,4.97152158]
[1763533252356,1.99374456,3026.5,3026.4,4.97152158]
[1763533253253,1.59683073,3026.5,3026.4,4.97152158]
[1763533253458,1.59683073,3026.5,3026.4,1.76372158]
[1763533255959,1.59683073,3026.5,3026.4,1.17705024]
[1763533258767,1.59683073,3026.5,3026.3,1.17705024]
[1763533258768,1.39963,3026.4,3026.3,1.17705024]
[1763533259862,1.33425,3026.3,3026.2,1.17705024]
[1763533260166,1.33426,3026.2,3026.1,0.48168024]
[1763533260356,1.33428,3026.1,3026.0,0.00424423]
[1763533260559,1.33433,3025.8,3025.7,0.0330502]
[1763533261467,1.33433,3025.8,3025.7,0.03620826]
[1763533261870,1.3063,3025.5,3025.4,3.129e-05]
[1763533262062,0.7985,3025.3,3025.2,3.129e-05]
[1763533262368,3.7156,3025.5,3025.0,0.53597]
[1763533262565,4.5141,3025.5,3024.7,2.35575972]
[1763533262770,0.5078,3025.0,3024.9,0.6534]
[1763533262968,0.00495842,3025.6,3025.5,0.53589]
[1763533263161,0.00495842,3025.6,3025.5,3.74369]
[1763533263465,0.53584,3025.8,3025.5,3.2078]
[1763533263666,0.5078,3026.0,3025.6,0.53587]
[1763533263968,0.53586,3025.7,3025.5,3.74367]
[1763533264167,0.53584,3025.8,3025.5,3.74367]
[1763533264469,0.53584,3025.8,3025.6,0.53587]
[1763533264664,1.04856842,3026.0,3025.7,0.53585]
[1763533264869,0.19722073,3026.5,3025.9,3.2078]
[1763533265070,1.33423,3026.4,3026.3,3.2078]
[1763533265368,0.5078,3026.0,3025.9,3.74361]
[1763533265569,1.3063,3026.0,3025.9,3.2078]
[1763533266066,0.5078,3025.5,3025.4,3.2078]
[1763533269373,1.3063,3025.5,3025.4,3.2078]
[1763533269874,0.5078,3025.5,3025.4,3.2078]
[1763533273372,0.11079605,3025.5,3025.4,3.2078]
[1763533279281,0.5078,3026.0,3025.8,0.53582]
[1763533279478,0.00495842,3026.3,3026.2,0.53576]
[1763533281173,0.5078,3027.0,3026.8,0.53565]
[1763533281377,1.04334,3027.5,3027.3,0.53557]
[1763533281673,1.04334,3027.5,3027.1,0.53559]
[1763533281674,0.53556,3027.4,3027.1,0.53559]
[1763533281973,0.5078,3027.0,3026.9,3.74342]
[1763533282169,0.51101502,3027.0,3026.9,3.74742353]
[1763533282783,0.00321502,3027.0,3026.9,3.74742353]
[1763533283171,0.5078,3027.5,3026.9,3.21180353]
[1763533283375,0.5078,3027.5,3027.4,3.74335]
[1763533283579,3.2078,3028.2,3027.9,0.53546]
[1763533284083,0.5116889,3028.0,3027.9,0.53546]
[1763533284582,1.0471389,3028.0,3027.8,3.2078]
[1763533285585,0.5116889,3028.0,3027.8,3.2078]
[1763533285789,0.0038889,3028.0,3027.9,0.53546]
[1763533285976,0.00495842,3028.3,3027.8,4.96547638]
[1763533286290,1.00175842,3028.3,3028.2,3.2078]
[1763533286988,1.00482293,3028.3,3028.2,3.2078]
[1763533287885,0.95402293,3028.3,3028.2,3.2078]
[1763533288090,0.00802293,3028.3,3028.2,3.2078]
[1763533288287,0.95402293,3028.3,3028.2,3.2078]
[1763533288889,0.5355,3027.7,3027.6,3.2078]
[1763533289088,1.4815,3027.7,3027.6,3.2078]
[1763533289586,0.5355,3027.7,3027.6,4.1308]
[1763533289786,0.53546,3027.9,3027.8,0.923]
[1763533290095,1.09556,3028.0,3027.9,0.923]
[1763533290484,2.04156,3028.0,3027.9,0.923]
[1763533291585,0.5353,3028.9,3028.5,0.923]
[1763533291788,0.53533,3028.7,3028.6,0.923]
[1763533292289,1.48138,3028.4,3028.3,0.923]
[1763533292489,1.48524744,3028.4,3028.3,0.923]
[1763533292691,0.946,3028.1,3028.0,0.00495842]
[1763533297997,0.00495842,3028.7,3028.6,0.923]
[1763533298597,0.95095842,3028.7,3028.6,0.923]
[1763533299100,0.95334544,3028.7,3028.6,0.923]
[1763533299790,1.5061,3028.5,3028.4,3.2078]
[1763533300396,1.5061,3028.5,3028.4,4.1308]
[1763533300591,0.5601,3028.5,3028.4,4.1308]
[1763533301599,1.5061,3028.5,3028.4,4.1308]
[1763533301800,0.5601,3028.5,3028.0,3.74818842]
[1763533302000,0.53541,3028.2,3028.1,0.923]
[1763533302196,0.53541,3028.2,3028.0,3.21275842]
[1763533302197,0.946,3028.1,3028.0,3.21275842]
[1763533302802,0.5601,3028.5,3028.0,4.67119842]
[1763533303004,1.48139,3028.3,3028.2,0.923]
[1763533303399,1.48143,3028.1,3028.0,4.13575842]
[1763533305108,0.53537,3028.4,3028.3,0.923]
[1763533305694,0.5601,3028.5,3028.4,0.923]
[1763533306007,1.5061,3028.5,3028.4,0.923]
[1763533306706,0.5601,3028.5,3028.0,3.74818842]
[1763533306907,0.946,3028.1,3028.0,3.21275842]
[1763533307108,0.946,3028.1,3028.0,4.13575842]
[1763533307307,0.946,3028.1,3028.0,3.21275842]
[1763533309004,1.48143,3028.1,3028.0,3.21275842]
[1763533309206,1.48143,3028.1,3028.0,4.38207063]
[1763533309998,1.48143,3028.1,3028.0,5.84051063]
[1763533310301,0.5601,3028.5,3028.0,4.67119842]
[1763533310608,0.5601,3028.5,3028.1,1.17387228]
[1763533311295,1.48139,3028.3,3028.2,1.17387228]
[1763533312304,1.48143,3028.1,3028.0,0.00495842]
[1763533312506,1.4815,3027.7,3027.6,1.17387228]
[1763533312811,1.48152,3027.6,3027.5,1.17387228]
[1763533313307,0.946,3027.6,3027.5,1.17387228]
[1763533313504,0.5601,3028.0,3027.7,0.923]
[1763533313705,0.5601,3028.0,3027.9,0.923]
[1763533313909,3.7679,3028.5,3028.0,0.923]
[1763533314097,0.946,3028.3,3028.2,1.17387228]
[1763533314298,1.48139,3028.3,3028.2,1.17387228]
[1763533314503,1.48139,3028.3,3028.2,2.09687228]
[1763533315107,0.53539,3028.3,3028.2,2.09687228]
[1763533315509,1.48139,3028.3,3028.2,2.09687228]
[1763533315703,1.48139,3028.3,3028.2,0.923]
[1763533316512,0.53539,3028.3,3028.2,2.09796022]
[1763533316716,1.48139,3028.3,3028.2,0.923]
[1763533319513,0.946,3028.2,3028.1,1.75767638]
[1763533319813,0.946,3028.2,3028.1,2.64427638]
[1763533320011,0.53541,3028.2,3028.1,3.17970638]
[1763533320211,1.44611,3028.2,3028.1,2.64427638]
[1763533320406,0.9107,3028.2,3028.1,2.64427638]
[1763533320609,0.53537,3028.4,3028.1,3.17970638]
[1763533320808,1.44607,3028.4,3028.3,1.17461083]
[1763533321210,1.09546,3028.5,3028.4,0.8866]
[1763533321408,1.09546,3028.5,3028.4,2.0607686]
[1763533321613,5.21396,3028.5,3028.4,1.1741686]
[1763533321813,0.9107,3028.3,3028.2,0.37752301]
[1763533322012,1.44616,3027.9,3027.8,1.75767638]
[1763533322208,0.9107,3027.7,3027.5,1.75767638]
[1763533322517,0.9107,3027.3,3027.2,1.7626348]
[1763533323319,0.9107,3027.3,3027.2,0.00495842]
[1763533324116,0.5146,3027.5,3027.3,1.42217]
[1763533324316,0.5146,3027.5,3027.4,0.8866]
[1763533324819,1.4253,3027.5,3027.4,0.8866]
[1763533325325,0.53555,3027.4,3027.2,0.00495842]
[1763533325524,0.9107,3027.3,3027.2,0.00495842]
[1763533327118,0.9107,3027.3,3027.2,0.8845774]
[1763533327921,0.9107,3027.3,3027.2,1.7711774]
[1763533328123,1.44625,3027.4,3027.3,0.8866]
[1763533328324,0.9107,3027.3,3027.2,0.88421497]
[1763533328931,0.9107,3027.3,3027.2,0.00495842]
[1763533329233,0.9107,3027.3,3027.2,0.89155842]
[1763533329429,0.9107,3027.3,3027.2,1.77084993]
[1763533329730,0.9107,3027.3,3027.2,0.89155842]
[1763533330528,0.9107,3027.3,3027.2,0.88375619]
[1763533330730,0.9107,3027.3,3027.2,0.00495842]
[1763533331026,0.9107,3027.3,3027.2,0.88375619]
[1763533331232,0.9107,3027.3,3027.2,0.00495842]
[1763533332433,0.9107,3027.3,3026.5,3.2078]
[1763533332434,1.44639,3026.6,3026.5,3.2078]
[1763533333233,1.44639,3026.6,3026.5,3.21057826]
[1763533335240,1.44639,3026.6,3026.5,0.00277826]
[1763533337635,0.53569,3026.6,3026.5,0.88937826]
[1763533338727,0.53568,3026.7,3026.5,3.70707826]
[1763533338932,0.53568,3026.7,3026.6,0.8866]
[1763533339844,3.21275842,3026.9,3026.6,0.8866]
[1763533340736,0.9107,3026.8,3026.7,0.8866]
[1763533340931,3.21275842,3026.9,3026.5,3.21057826]
[1763533340932,0.53569,3026.6,3026.5,4.09717826]
[1763533341944,3.21275842,3026.9,3026.5,4.09717826]
[1763533342932,3.74840842,3026.9,3026.8,0.8444]
[1763533343134,3.21275842,3026.9,3026.8,0.8444]
[1763533343336,0.00495842,3026.9,3026.8,0.8444]
[1763533344633,3.2078,3027.7,3027.6,0.8444]
[1763533344935,0.5601,3028.5,3027.6,0.53551]
[1763533344936,3.2078,3028.1,3027.6,0.53551]
[1763533345137,1.85924,3028.0,3027.9,0.8444]
[1763533345541,0.53551,3027.7,3027.4,0.53554]
[1763533345737,0.53551,3027.7,3027.6,0.8444]
[1763533345938,1.34471,3027.7,3027.6,0.8444]
[1763533347133,0.53551,3027.7,3027.6,0.8444]
[1763533347332,1.34471,3027.7,3027.6,0.8444]
[1763533347539,1.36165,3027.4,3027.2,1.75767638]
[1763533347736,0.5146,3028.0,3027.7,0.8063]
[1763533348036,0.5146,3028.0,3027.9,0.8063]
[1763533348244,0.00495842,3028.1,3028.0,1.34174]
[1763533348443,0.00495842,3028.1,3028.0,0.8063]
[1763533348639,0.83105842,3028.1,3028.0,0.8063]
[1763533348836,0.00495842,3028.1,3028.0,0.8063]
[1763533349449,0.83105842,3028.1,3028.0,0.8063]
[1763533349948,0.00495842,3028.1,3028.0,4.0141]
[1763533350138,0.00495842,3028.1,3028.0,0.8063]
[1763533350338,0.00495842,3028.1,3028.0,4.0141]
[1763533350547,0.83105842,3028.1,3028.0,3.2078]
[1763533350939,0.00495842,3028.1,3028.0,4.0141]
[1763533352748,0.00495842,3028.1,3028.0,5.18172392]
[1763533353048,3.74314,3028.6,3028.5,0.8063]
[1763533354243,0.00238702,3028.7,3028.6,0.8063]
[1763533358257,0.53516,3029.6,3029.5,0.8063]
[1763533358445,0.8261,3029.6,3029.5,0.8063]
[1763533358644,0.53522,3029.3,3029.2,0.8063]
[1763533358852,0.5352,3029.4,3029.1,0.53525]
[1763533359054,0.5352,3029.4,3029.3,0.8063]
[1763533359244,0.53810261,3029.4,3029.3,0.80953896]
[1763533359738,0.00290261,3029.4,3029.3,0.80953896]
[1763533360155,0.82900261,3029.4,3029.3,0.00323896]